[Event "Titled Tuesday Blitz August 24 2021"]
[White "Djordjevic, Vuk"]
[Black "Kobalia, Mikhail"]
[WhiteFideId "902098"]
[BlackFideId "4119150"]
[WhiteElo "2463"]
[BlackElo "2569"]
[Result "1-0"]
[Round "08"]
[TimeControl "180+1"]
[Date "2021.08.24"]
[WhiteClock "0:00:10"]
[BlackClock "0:00:18"]

1. d4 {[%clk 0:03:00]}  Nf6 {[%clk 0:02:55]} 2. Bg5 {[%clk 0:03:00]}  g6 {[%clk 0:02:54]} 3. Bxf6 {[%clk 0:03:00]}  exf6 {[%clk 0:02:54]} 4. c4 {[%clk 0:03:01]}  d5 {[%clk 0:02:54]} 5. cxd5 {[%clk 0:03:00]}  Qxd5 {[%clk 0:02:54]} 6. Nc3 {[%clk 0:03:01]}  Qd8 {[%clk 0:02:52]} 7. h4 {[%clk 0:02:59]}  h5 {[%clk 0:02:51]} 8. e3 {[%clk 0:02:59]}  f5 {[%clk 0:02:51]} 9. g3 {[%clk 0:02:58]}  c5 {[%clk 0:02:49]} 10. dxc5 {[%clk 0:02:50]}  Qxd1+ {[%clk 0:02:46]} 11. Rxd1 {[%clk 0:02:51]}  Bxc5 {[%clk 0:02:46]} 12. Bg2 {[%clk 0:02:51]}  Nc6 {[%clk 0:02:45]} 13. Nge2 {[%clk 0:02:47]}  Be6 {[%clk 0:02:43]} 14. a3 {[%clk 0:02:28]}  Rc8 {[%clk 0:02:37]} 15. Nf4 {[%clk 0:02:21]}  Bb3 {[%clk 0:02:36]} 16. Rc1 {[%clk 0:02:20]}  O-O {[%clk 0:02:28]} 17. Bd5 {[%clk 0:02:16]}  Bxd5 {[%clk 0:02:20]} 18. Nfxd5 {[%clk 0:02:06]}  Ne5 {[%clk 0:02:17]} 19. Ke2 {[%clk 0:02:06]}  Kg7 {[%clk 0:02:16]} 20. Rc2 {[%clk 0:01:28]}  Rfd8 {[%clk 0:02:14]} 21. Rhc1 {[%clk 0:01:24]}  Bf8 {[%clk 0:02:13]} 22. Nf4 {[%clk 0:01:20]}  a6 {[%clk 0:02:08]} 23. Ncd5 {[%clk 0:01:17]}  Rxc2+ {[%clk 0:02:07]} 24. Rxc2 {[%clk 0:01:18]}  Bd6 {[%clk 0:02:07]} 25. Nb6 {[%clk 0:01:06]}  Nc6 {[%clk 0:02:04]} 26. Nd3 {[%clk 0:01:05]}  f6 {[%clk 0:01:55]} 27. Na4 {[%clk 0:01:04]}  Ne5 {[%clk 0:01:42]} 28. Ndc5 {[%clk 0:00:59]}  Bxc5 {[%clk 0:01:23]} 29. Nxc5 {[%clk 0:01:00]}  Rb8 {[%clk 0:01:01]} 30. Nd3 {[%clk 0:00:52]}  Nc6 {[%clk 0:00:57]} 31. Nc5 {[%clk 0:00:51]}  Ne5 {[%clk 0:00:54]} 32. Ne6+ {[%clk 0:00:25]}  Kf7 {[%clk 0:00:53]} 33. Nd4 {[%clk 0:00:24]}  Rd8 {[%clk 0:00:48]} 34. f4 {[%clk 0:00:21]}  Nc6 {[%clk 0:00:30]} 35. Nxc6 {[%clk 0:00:21]}  bxc6 {[%clk 0:00:31]} 36. Rxc6 {[%clk 0:00:21]}  a5 {[%clk 0:00:31]} 37. Rc7+ {[%clk 0:00:15]}  Ke6 {[%clk 0:00:31]} 38. Rc6+ {[%clk 0:00:15]}  Kf7 {[%clk 0:00:30]} 39. Rb6 {[%clk 0:00:15]}  a4 {[%clk 0:00:29]} 40. Rb4 {[%clk 0:00:15]}  Ra8 {[%clk 0:00:29]} 41. Kd3 {[%clk 0:00:14]}  g5 {[%clk 0:00:29]} 42. fxg5 {[%clk 0:00:12]}  fxg5 {[%clk 0:00:29]} 43. Rb7+ {[%clk 0:00:12]}  Kf6 {[%clk 0:00:24]} 44. Rb6+ {[%clk 0:00:12]}  Ke5 {[%clk 0:00:22]} 45. hxg5 {[%clk 0:00:12]}  Rd8+ {[%clk 0:00:22]} 46. Ke2 {[%clk 0:00:12]}  Rc8 {[%clk 0:00:21]} 47. Kf3 {[%clk 0:00:11]}  Rg8 {[%clk 0:00:19]} 48. g6 {[%clk 0:00:11]}  Rc8 {[%clk 0:00:19]} 49. g7 {[%clk 0:00:11]}  Rg8 {[%clk 0:00:18]} 50. Rg6 {[%clk 0:00:10]} 1-0


[Site "https://www.chess.com"]

[Event "Titled Tuesday Blitz August 24 2021"]
[White "Erdogmus, Yagiz Kaan"]
[Black "Shimelkov, Vasiliy"]
[WhiteFideId "44599790"]
[BlackFideId "13701630"]
[WhiteElo "1783"]
[BlackElo "2073"]
[Result "0-1"]
[Round "08"]
[TimeControl "180+1"]
[Date "2021.08.24"]
[WhiteClock "0:00:05"]
[BlackClock "0:00:21"]

1. e4 {[%clk 0:03:00]}  c5 {[%clk 0:02:59]} 2. Nf3 {[%clk 0:02:59]}  Nc6 {[%clk 0:02:59]} 3. d4 {[%clk 0:02:58]}  cxd4 {[%clk 0:02:59]} 4. Nxd4 {[%clk 0:02:59]}  Nf6 {[%clk 0:02:58]} 5. Nc3 {[%clk 0:02:58]}  e6 {[%clk 0:02:57]} 6. Ndb5 {[%clk 0:02:56]}  Bb4 {[%clk 0:02:56]} 7. Bf4 {[%clk 0:02:55]}  O-O {[%clk 0:02:47]} 8. Bc7 {[%clk 0:02:54]}  Qe7 {[%clk 0:02:44]} 9. Bd6 {[%clk 0:02:53]}  Bxd6 {[%clk 0:02:43]} 10. Qxd6 {[%clk 0:02:53]}  Qxd6 {[%clk 0:02:36]} 11. Nxd6 {[%clk 0:02:52]}  Ne8 {[%clk 0:02:36]} 12. Ncb5 {[%clk 0:02:45]}  a6 {[%clk 0:02:34]} 13. Nxe8 {[%clk 0:02:44]}  axb5 {[%clk 0:02:32]} 14. Nc7 {[%clk 0:02:35]}  Ra4 {[%clk 0:02:28]} 15. f3 {[%clk 0:02:34]}  b4 {[%clk 0:02:26]} 16. Nb5 {[%clk 0:02:26]}  b6 {[%clk 0:02:23]} 17. Nd6 {[%clk 0:02:20]}  Nd4 {[%clk 0:02:16]} 18. O-O-O {[%clk 0:01:42]}  e5 {[%clk 0:02:15]} 19. Kb1 {[%clk 0:01:27]}  Ba6 {[%clk 0:02:11]} 20. Nc4 {[%clk 0:01:26]}  Bxc4 {[%clk 0:02:06]} 21. Bxc4 {[%clk 0:01:26]}  d6 {[%clk 0:02:00]} 22. Bb3 {[%clk 0:01:14]}  Ra5 {[%clk 0:01:57]} 23. Bd5 {[%clk 0:01:13]}  Rc8 {[%clk 0:01:53]} 24. Rd2 {[%clk 0:01:12]}  Rac5 {[%clk 0:01:46]} 25. Rc1 {[%clk 0:01:08]}  Kf8 {[%clk 0:01:42]} 26. Bb3 {[%clk 0:00:56]}  Ke7 {[%clk 0:01:40]} 27. Rcd1 {[%clk 0:00:54]}  h5 {[%clk 0:01:34]} 28. h4 {[%clk 0:00:54]}  f6 {[%clk 0:01:32]} 29. Rxd4 {[%clk 0:00:52]}  exd4 {[%clk 0:01:30]} 30. Rxd4 {[%clk 0:00:53]}  g5 {[%clk 0:01:29]} 31. Rxb4 {[%clk 0:00:49]}  gxh4 {[%clk 0:01:27]} 32. Rxb6 {[%clk 0:00:49]}  Rg5 {[%clk 0:01:25]} 33. Rb7+ {[%clk 0:00:48]}  Ke8 {[%clk 0:01:21]} 34. Rh7 {[%clk 0:00:47]}  h3 {[%clk 0:01:14]} 35. Ba4+ {[%clk 0:00:35]}  Kf8 {[%clk 0:01:08]} 36. Rh8+ {[%clk 0:00:35]}  Kg7 {[%clk 0:01:03]} 37. Rxc8 {[%clk 0:00:35]}  hxg2 {[%clk 0:00:58]} 38. a3 {[%clk 0:00:35]}  g1=Q+ {[%clk 0:00:56]} 39. Ka2 {[%clk 0:00:35]}  Qd4 {[%clk 0:00:48]} 40. Bb3 {[%clk 0:00:33]}  d5 {[%clk 0:00:39]} 41. f4 {[%clk 0:00:33]}  Rg1 {[%clk 0:00:38]} 42. Bxd5 {[%clk 0:00:31]}  f5 {[%clk 0:00:37]} 43. c3 {[%clk 0:00:23]}  Qd1 {[%clk 0:00:35]} 44. Rc7+ {[%clk 0:00:20]}  Kf8 {[%clk 0:00:31]} 45. Rf7+ {[%clk 0:00:20]}  Ke8 {[%clk 0:00:31]} 46. Rxf5 {[%clk 0:00:20]}  h4 {[%clk 0:00:30]} 47. Re5+ {[%clk 0:00:20]}  Kd7 {[%clk 0:00:29]} 48. Be6+ {[%clk 0:00:19]}  Kc7 {[%clk 0:00:29]} 49. Bh3 {[%clk 0:00:12]}  Qd3 {[%clk 0:00:27]} 50. Re7+ {[%clk 0:00:09]}  Kb6 {[%clk 0:00:24]} 51. Re6+ {[%clk 0:00:08]}  Kc5 {[%clk 0:00:21]} 52. Re5+ {[%clk 0:00:08]}  Kc6 {[%clk 0:00:22]} 53. Re6+ {[%clk 0:00:08]}  Kc7 {[%clk 0:00:22]} 54. Bf5 {[%clk 0:00:05]}  Qc4+ {[%clk 0:00:21]} 55. b3 {[%clk 0:00:05]}  Qe2# {[%clk 0:00:21]} 0-1


[Site "https://www.chess.com"]

[Event "Titled Tuesday Blitz August 24 2021"]
[White "Fedoseev, Vladimir"]
[Black "Maghsoodloo, Parham"]
[WhiteFideId "24130737"]
[BlackFideId "12539929"]
[WhiteElo "2756"]
[BlackElo "2601"]
[Result "1-0"]
[Round "08"]
[TimeControl "180+1"]
[Date "2021.08.24"]
[WhiteClock "0:00:01"]
[BlackClock "0:00:01"]

1. b3 {[%clk 0:02:42]}  d6 {[%clk 0:02:55]} 2. Bb2 {[%clk 0:02:39]}  Bf5 {[%clk 0:02:55]} 3. e3 {[%clk 0:02:39]}  Nf6 {[%clk 0:02:45]} 4. Ne2 {[%clk 0:02:33]}  h6 {[%clk 0:02:44]} 5. Ng3 {[%clk 0:02:30]}  Bh7 {[%clk 0:02:43]} 6. d4 {[%clk 0:02:29]}  Nbd7 {[%clk 0:02:41]} 7. Bd3 {[%clk 0:02:21]}  Bxd3 {[%clk 0:02:28]} 8. Qxd3 {[%clk 0:02:22]}  d5 {[%clk 0:02:28]} 9. Nd2 {[%clk 0:02:19]}  e6 {[%clk 0:02:27]} 10. c4 {[%clk 0:02:18]}  a5 {[%clk 0:02:24]} 11. a3 {[%clk 0:02:13]}  Be7 {[%clk 0:02:14]} 12. cxd5 {[%clk 0:02:07]}  exd5 {[%clk 0:02:14]} 13. Nf5 {[%clk 0:02:07]}  O-O {[%clk 0:02:14]} 14. O-O {[%clk 0:02:00]}  Re8 {[%clk 0:02:15]} 15. e4 {[%clk 0:01:42]}  dxe4 {[%clk 0:01:22]} 16. Nxe4 {[%clk 0:01:26]}  Nxe4 {[%clk 0:01:22]} 17. Qxe4 {[%clk 0:01:27]}  Nf6 {[%clk 0:00:54]} 18. Qxb7 {[%clk 0:00:58]}  Rb8 {[%clk 0:00:55]} 19. Qf3 {[%clk 0:00:50]}  Qd5 {[%clk 0:00:54]} 20. Qxd5 {[%clk 0:00:36]}  Nxd5 {[%clk 0:00:55]} 21. b4 {[%clk 0:00:35]}  axb4 {[%clk 0:00:53]} 22. axb4 {[%clk 0:00:36]}  Bxb4 {[%clk 0:00:53]} 23. Ba3 {[%clk 0:00:27]}  Bc3 {[%clk 0:00:43]} 24. Rad1 {[%clk 0:00:27]}  h5 {[%clk 0:00:38]} 25. g3 {[%clk 0:00:21]}  g6 {[%clk 0:00:37]} 26. Nh4 {[%clk 0:00:21]}  Re4 {[%clk 0:00:24]} 27. Nf3 {[%clk 0:00:20]}  f6 {[%clk 0:00:24]} 28. Rd3 {[%clk 0:00:19]}  g5 {[%clk 0:00:22]} 29. Rc1 {[%clk 0:00:17]}  g4 {[%clk 0:00:11]} 30. Nh4 {[%clk 0:00:17]}  Rb3 {[%clk 0:00:07]} 31. Bc5 {[%clk 0:00:17]}  Bb2 {[%clk 0:00:07]} 32. Rxb3 {[%clk 0:00:16]}  Bxc1 {[%clk 0:00:07]} 33. Kf1 {[%clk 0:00:16]}  Bd2 {[%clk 0:00:07]} 34. Nf5 {[%clk 0:00:15]}  Kf7 {[%clk 0:00:07]} 35. Kg2 {[%clk 0:00:13]}  Bg5 {[%clk 0:00:07]} 36. h3 {[%clk 0:00:12]}  Ke6 {[%clk 0:00:07]} 37. Ng7+ {[%clk 0:00:12]}  Kf7 {[%clk 0:00:07]} 38. Nxh5 {[%clk 0:00:11]}  f5 {[%clk 0:00:06]} 39. hxg4 {[%clk 0:00:11]}  fxg4 {[%clk 0:00:07]} 40. Rb8 {[%clk 0:00:09]}  Kg6 {[%clk 0:00:07]} 41. Rh8 {[%clk 0:00:08]}  Re2 {[%clk 0:00:07]} 42. Kf1 {[%clk 0:00:08]}  Rc2 {[%clk 0:00:07]} 43. Kg1 {[%clk 0:00:05]}  Nc3 {[%clk 0:00:05]} 44. Nf4+ {[%clk 0:00:04]}  Bxf4 {[%clk 0:00:05]} 45. gxf4 {[%clk 0:00:04]}  Ne4 {[%clk 0:00:06]} 46. Rg8+ {[%clk 0:00:02]}  Kh5 {[%clk 0:00:04]} 47. Rh8+ {[%clk 0:00:02]}  Kg6 {[%clk 0:00:04]} 48. Rg8+ {[%clk 0:00:03]}  Kf6 {[%clk 0:00:03]} 49. Rxg4 {[%clk 0:00:02]}  Kf5 {[%clk 0:00:03]} 50. Rh4 {[%clk 0:00:02]}  Nxf2 {[%clk 0:00:03]} 51. Be7 {[%clk 0:00:02]}  Ng4 {[%clk 0:00:03]} 52. Rh5+ {[%clk 0:00:01]}  Kxf4 {[%clk 0:00:03]} 53. Rc5 {[%clk 0:00:02]}  Rd2 {[%clk 0:00:01]} 54. Bg5+ {[%clk 0:00:01]} 1-0


[Site "https://www.chess.com"]

[Event "Titled Tuesday Blitz August 24 2021"]
[White "Gelman, Alexander"]
[Black "Nilsen, Tobias Lang"]
[WhiteFideId "4118316"]
[BlackFideId "1521624"]
[WhiteElo "2375"]
[BlackElo "1975"]
[Result "1-0"]
[Round "08"]
[TimeControl "180+1"]
[Date "2021.08.24"]
[WhiteClock "0:00:41"]
[BlackClock "0:00:14"]

1. d4 {[%clk 0:03:00]}  Nf6 {[%clk 0:02:56]} 2. Nc3 {[%clk 0:03:01]}  d5 {[%clk 0:02:51]} 3. Bf4 {[%clk 0:03:00]}  a6 {[%clk 0:02:49]} 4. e3 {[%clk 0:02:59]}  c5 {[%clk 0:02:48]} 5. Nf3 {[%clk 0:02:59]}  Nc6 {[%clk 0:02:48]} 6. Ne5 {[%clk 0:02:59]}  cxd4 {[%clk 0:02:47]} 7. exd4 {[%clk 0:03:00]}  e6 {[%clk 0:02:46]} 8. Qd2 {[%clk 0:02:56]}  Be7 {[%clk 0:02:45]} 9. h4 {[%clk 0:02:43]}  Qb6 {[%clk 0:02:37]} 10. O-O-O {[%clk 0:02:41]}  Bb4 {[%clk 0:02:35]} 11. f3 {[%clk 0:02:40]}  Nxe5 {[%clk 0:02:31]} 12. Bxe5 {[%clk 0:02:39]}  Be7 {[%clk 0:02:31]} 13. g4 {[%clk 0:02:37]}  Bd7 {[%clk 0:02:23]} 14. g5 {[%clk 0:02:32]}  Nh5 {[%clk 0:02:23]} 15. Bh3 {[%clk 0:02:30]}  f6 {[%clk 0:02:08]} 16. gxf6 {[%clk 0:02:04]}  gxf6 {[%clk 0:02:09]} 17. Qh6 {[%clk 0:01:59]}  fxe5 {[%clk 0:02:06]} 18. Qxh5+ {[%clk 0:01:59]}  Kd8 {[%clk 0:02:06]} 19. Rhe1 {[%clk 0:01:33]}  exd4 {[%clk 0:02:02]} 20. Nxd5 {[%clk 0:01:33]}  Qc5 {[%clk 0:01:29]} 21. Bxe6 {[%clk 0:01:29]}  Bc6 {[%clk 0:01:22]} 22. b4 {[%clk 0:01:14]}  Qb5 {[%clk 0:00:20]} 23. Rxd4 {[%clk 0:01:09]}  Bd6 {[%clk 0:00:16]} 24. Qg5+ {[%clk 0:01:03]}  Ke8 {[%clk 0:00:15]} 25. Bc8+ {[%clk 0:00:44]}  Kf7 {[%clk 0:00:13]} 26. Qf6+ {[%clk 0:00:41]}  Kg8 {[%clk 0:00:13]} 27. Rg1+ {[%clk 0:00:41]}  Bg3 {[%clk 0:00:14]} 1-0


[Site "https://www.chess.com"]

[Event "Titled Tuesday Blitz August 24 2021"]
[White "Ivanchuk, Vasyl"]
[Black "Shuvalova, Polina"]
[WhiteFideId "14100010"]
[BlackFideId "24171760"]
[WhiteElo "2710"]
[BlackElo "2299"]
[Result "1-0"]
[Round "08"]
[TimeControl "180+1"]
[Date "2021.08.24"]
[WhiteClock "0:00:23"]
[BlackClock "0:00:02"]

1. e4 {[%clk 0:03:00]}  c6 {[%clk 0:02:58]} 2. d4 {[%clk 0:02:58]}  d5 {[%clk 0:02:58]} 3. f3 {[%clk 0:02:58]}  dxe4 {[%clk 0:02:55]} 4. fxe4 {[%clk 0:02:59]}  e5 {[%clk 0:02:55]} 5. Nf3 {[%clk 0:02:59]}  Bg4 {[%clk 0:02:54]} 6. c3 {[%clk 0:02:58]}  Nf6 {[%clk 0:02:45]} 7. Qb3 {[%clk 0:02:38]}  Bxf3 {[%clk 0:02:34]} 8. gxf3 {[%clk 0:02:37]}  Nbd7 {[%clk 0:02:21]} 9. Bc4 {[%clk 0:02:34]}  Qe7 {[%clk 0:02:15]} 10. Qxb7 {[%clk 0:02:34]}  Rb8 {[%clk 0:02:10]} 11. Qxc6 {[%clk 0:02:32]}  g6 {[%clk 0:01:48]} 12. b3 {[%clk 0:02:32]}  exd4 {[%clk 0:01:28]} 13. cxd4 {[%clk 0:02:28]}  Nh5 {[%clk 0:01:26]} 14. Nc3 {[%clk 0:02:04]}  Bg7 {[%clk 0:01:18]} 15. Nd5 {[%clk 0:02:04]}  Qh4+ {[%clk 0:01:18]} 16. Kd1 {[%clk 0:02:03]}  Bxd4 {[%clk 0:01:11]} 17. Rb1 {[%clk 0:01:54]}  Qh3 {[%clk 0:00:58]} 18. Rf1 {[%clk 0:01:31]}  O-O {[%clk 0:00:52]} 19. Bh6 {[%clk 0:01:31]}  Ne5 {[%clk 0:00:38]} 20. Qc7 {[%clk 0:01:29]}  Nxc4 {[%clk 0:00:26]} 21. Qxc4 {[%clk 0:01:29]}  Bg7 {[%clk 0:00:23]} 22. Bxg7 {[%clk 0:01:24]}  Nxg7 {[%clk 0:00:22]} 23. Rf2 {[%clk 0:01:20]}  Ne6 {[%clk 0:00:21]} 24. Qc3 {[%clk 0:01:16]}  Rfd8 {[%clk 0:00:15]} 25. Kc2 {[%clk 0:01:15]}  h5 {[%clk 0:00:03]} 26. Kb2 {[%clk 0:01:13]}  a5 {[%clk 0:00:03]} 27. a4 {[%clk 0:01:09]}  Qh4 {[%clk 0:00:01]} 28. Rd2 {[%clk 0:00:53]}  Rb7 {[%clk 0:00:01]} 29. Rbd1 {[%clk 0:00:45]}  Kf8 {[%clk 0:00:02]} 30. Nf6 {[%clk 0:00:32]}  Rxd2+ {[%clk 0:00:01]} 31. Rxd2 {[%clk 0:00:32]}  Qf4 {[%clk 0:00:01]} 32. Nd5 {[%clk 0:00:24]}  Rc7 {[%clk 0:00:02]} 33. Nxf4 {[%clk 0:00:23]}  Rxc3 {[%clk 0:00:02]} 34. Nxe6+ {[%clk 0:00:23]} 1-0


[Site "https://www.chess.com"]

[Event "Titled Tuesday Blitz August 24 2021"]
[White "Ivanisevic, Ivan"]
[Black "Rottenwohrer Suarez, Juan"]
[WhiteFideId "912417"]
[BlackFideId "32068182"]
[WhiteElo "2499"]
[BlackElo "2158"]
[Result "0-1"]
[Round "08"]
[TimeControl "180+1"]
[Date "2021.08.24"]
[WhiteClock "0:00:01"]
[BlackClock "0:00:05"]

1. d4 {[%clk 0:03:00]}  Nf6 {[%clk 0:02:59]} 2. c4 {[%clk 0:03:01]}  g6 {[%clk 0:02:58]} 3. h4 {[%clk 0:02:58]}  h5 {[%clk 0:02:46]} 4. Nc3 {[%clk 0:02:57]}  Bg7 {[%clk 0:02:43]} 5. e4 {[%clk 0:02:54]}  d6 {[%clk 0:02:39]} 6. Bg5 {[%clk 0:02:42]}  a6 {[%clk 0:02:29]} 7. Be2 {[%clk 0:02:26]}  Nc6 {[%clk 0:02:26]} 8. d5 {[%clk 0:02:22]}  Ne5 {[%clk 0:02:23]} 9. Nf3 {[%clk 0:02:21]}  Nxf3+ {[%clk 0:02:16]} 10. gxf3 {[%clk 0:02:22]}  c6 {[%clk 0:02:03]} 11. Qd2 {[%clk 0:02:22]}  cxd5 {[%clk 0:02:02]} 12. cxd5 {[%clk 0:02:23]}  b5 {[%clk 0:01:59]} 13. a3 {[%clk 0:01:56]}  Bb7 {[%clk 0:01:56]} 14. O-O-O {[%clk 0:01:54]}  Nd7 {[%clk 0:01:53]} 15. Kb1 {[%clk 0:01:52]}  Rc8 {[%clk 0:01:51]} 16. Rc1 {[%clk 0:01:52]}  Nc5 {[%clk 0:01:49]} 17. Bd1 {[%clk 0:01:43]}  Qa5 {[%clk 0:01:32]} 18. Be3 {[%clk 0:01:04]}  O-O {[%clk 0:01:22]} 19. Bd4 {[%clk 0:00:54]}  Bxd4 {[%clk 0:00:34]} 20. Qxd4 {[%clk 0:00:53]}  Nd7 {[%clk 0:00:35]} 21. Be2 {[%clk 0:00:47]}  Qb6 {[%clk 0:00:33]} 22. Rhd1 {[%clk 0:00:45]}  Qxd4 {[%clk 0:00:22]} 23. Rxd4 {[%clk 0:00:46]}  Rc7 {[%clk 0:00:20]} 24. Na2 {[%clk 0:00:40]}  Rfc8 {[%clk 0:00:20]} 25. Rxc7 {[%clk 0:00:38]}  Rxc7 {[%clk 0:00:21]} 26. b4 {[%clk 0:00:35]}  Nb6 {[%clk 0:00:15]} 27. Rd1 {[%clk 0:00:22]}  Kg7 {[%clk 0:00:12]} 28. Rc1 {[%clk 0:00:21]}  Rxc1+ {[%clk 0:00:12]} 29. Nxc1 {[%clk 0:00:22]}  f5 {[%clk 0:00:12]} 30. Nb3 {[%clk 0:00:17]}  Na4 {[%clk 0:00:10]} 31. Kc2 {[%clk 0:00:16]}  Kf6 {[%clk 0:00:10]} 32. Na5 {[%clk 0:00:16]}  Bc8 {[%clk 0:00:09]} 33. Kd3 {[%clk 0:00:15]}  e6 {[%clk 0:00:08]} 34. Ke3 {[%clk 0:00:14]}  exd5 {[%clk 0:00:06]} 35. exd5 {[%clk 0:00:14]}  Nc3 {[%clk 0:00:07]} 36. Bd1 {[%clk 0:00:11]}  Nxd1+ {[%clk 0:00:06]} 37. Kd4 {[%clk 0:00:12]}  Nxf2 {[%clk 0:00:06]} 38. Nc6 {[%clk 0:00:12]}  g5 {[%clk 0:00:05]} 39. hxg5+ {[%clk 0:00:11]}  Kxg5 {[%clk 0:00:06]} 40. Ne7 {[%clk 0:00:11]}  Bd7 {[%clk 0:00:05]} 41. Ke3 {[%clk 0:00:11]}  Nd1+ {[%clk 0:00:05]} 42. Ke2 {[%clk 0:00:10]}  Nc3+ {[%clk 0:00:03]} 43. Kf2 {[%clk 0:00:10]}  h4 {[%clk 0:00:03]} 44. Nc6 {[%clk 0:00:09]}  Nxd5 {[%clk 0:00:03]} 45. Nd4 {[%clk 0:00:09]}  Nc3 {[%clk 0:00:02]} 46. Nb3 {[%clk 0:00:09]}  f4 {[%clk 0:00:03]} 47. Nd4 {[%clk 0:00:09]}  h3 {[%clk 0:00:03]} 48. Kg1 {[%clk 0:00:09]}  Nb1 {[%clk 0:00:03]} 49. Kh2 {[%clk 0:00:09]}  Nxa3 {[%clk 0:00:03]} 50. Nb3 {[%clk 0:00:08]}  Kf6 {[%clk 0:00:03]} 51. Nd2 {[%clk 0:00:08]}  Ke5 {[%clk 0:00:04]} 52. Ne4 {[%clk 0:00:08]}  Nc2 {[%clk 0:00:04]} 53. Ng5 {[%clk 0:00:07]}  Nxb4 {[%clk 0:00:04]} 54. Nf7+ {[%clk 0:00:08]}  Kd5 {[%clk 0:00:03]} 55. Ng5 {[%clk 0:00:05]}  a5 {[%clk 0:00:04]} 56. Ne4 {[%clk 0:00:05]}  a4 {[%clk 0:00:04]} 57. Nc3+ {[%clk 0:00:04]}  Kc4 {[%clk 0:00:05]} 58. Nb1 {[%clk 0:00:03]}  Kb3 {[%clk 0:00:04]} 59. Nd2+ {[%clk 0:00:03]}  Kc2 {[%clk 0:00:05]} 60. Ne4 {[%clk 0:00:02]}  a3 {[%clk 0:00:05]} 61. Nxd6 {[%clk 0:00:02]}  a2 {[%clk 0:00:06]} 62. Nxb5 {[%clk 0:00:01]}  Bxb5 {[%clk 0:00:05]} 0-1


[Site "https://www.chess.com"]

[Event "Titled Tuesday Blitz August 24 2021"]
[White "Jarovinsky, Alexey"]
[Black "Pelopidass"]
[WhiteFideId "14115131"]
[WhiteElo "2446"]
[BlackElo "2558"]
[Result "1-0"]
[Round "08"]
[TimeControl "180+1"]
[Date "2021.08.24"]
[WhiteClock "0:00:20"]
[BlackClock "0:00:07"]

1. Nc3 {[%clk 0:03:00]}  d5 {[%clk 0:02:56]} 2. e4 {[%clk 0:03:00]}  d4 {[%clk 0:02:54]} 3. Nce2 {[%clk 0:02:59]}  e5 {[%clk 0:02:53]} 4. c3 {[%clk 0:02:58]}  c5 {[%clk 0:02:51]} 5. Ng3 {[%clk 0:02:57]}  a6 {[%clk 0:02:45]} 6. Bc4 {[%clk 0:02:56]}  b5 {[%clk 0:02:42]} 7. Bd5 {[%clk 0:02:56]}  Ra7 {[%clk 0:02:42]} 8. Nf3 {[%clk 0:02:50]}  Bd6 {[%clk 0:02:38]} 9. cxd4 {[%clk 0:02:48]}  cxd4 {[%clk 0:02:38]} 10. a4 {[%clk 0:02:44]}  Bd7 {[%clk 0:02:34]} 11. d3 {[%clk 0:02:29]}  Ne7 {[%clk 0:02:24]} 12. Ba2 {[%clk 0:02:21]}  h6 {[%clk 0:02:10]} 13. O-O {[%clk 0:01:53]}  bxa4 {[%clk 0:02:07]} 14. Nxe5 {[%clk 0:01:47]}  Bxe5 {[%clk 0:02:08]} 15. Qh5 {[%clk 0:01:45]}  Ng6 {[%clk 0:02:05]} 16. f4 {[%clk 0:01:44]}  Bf6 {[%clk 0:01:08]} 17. e5 {[%clk 0:01:35]}  Bh4 {[%clk 0:00:48]} 18. Bxf7+ {[%clk 0:01:33]}  Kxf7 {[%clk 0:00:47]} 19. f5 {[%clk 0:01:31]}  Bxg3 {[%clk 0:00:44]} 20. Qxg6+ {[%clk 0:01:29]}  Kg8 {[%clk 0:00:44]} 21. f6 {[%clk 0:01:18]}  Be8 {[%clk 0:00:36]} 22. Qxg3 {[%clk 0:01:13]}  Kh7 {[%clk 0:00:31]} 23. e6 {[%clk 0:01:01]}  gxf6 {[%clk 0:00:30]} 24. Qh4 {[%clk 0:00:59]}  Kg7 {[%clk 0:00:29]} 25. Bf4 {[%clk 0:00:53]}  Bg6 {[%clk 0:00:27]} 26. Bxb8 {[%clk 0:00:53]}  Qxb8 {[%clk 0:00:26]} 27. Rxf6 {[%clk 0:00:49]}  Qe5 {[%clk 0:00:21]} 28. Raf1 {[%clk 0:00:47]}  Re7 {[%clk 0:00:12]} 29. Rxg6+ {[%clk 0:00:45]}  Kxg6 {[%clk 0:00:12]} 30. Qxe7 {[%clk 0:00:45]}  Qe3+ {[%clk 0:00:10]} 31. Kh1 {[%clk 0:00:45]}  Qe5 {[%clk 0:00:10]} 32. Qf7+ {[%clk 0:00:44]}  Kg5 {[%clk 0:00:11]} 33. e7 {[%clk 0:00:29]}  Rc8 {[%clk 0:00:07]} 34. Qf8 {[%clk 0:00:20]} 1-0


[Site "https://www.chess.com"]